Workbook

Sheet Parametere
A1: Enhet | B1: MTTF (år) | C1: MDT (t) | D1: t (t) | E1: navn | F1: l | G1: navn | H1: q
A2: Pumpe, P1 | B2: 1 | C2: 8 | E2: lambda_P1 | F2: =1/(9760*B2) -> 0.0001024590164 | G2: q_P1 | H2: =C2*F2 -> 0.0008196721311
A3: Pumpe, P2 | B3: 1 | C3: 8 | E3: lambda_P2 | F3: =1/(9760*B3) -> 0.0001024590164 | G3: q_P2 | H3: =C3*F3 -> 0.0008196721311
A4: Elektrisk motor, M1 | B4: 2 | C4: 24 | E4: lambda_M1 | F4: 5.12295082e-05 | G4: q_M1 | H4: 0.001229508197
A5: Elektrisk motor, M2 | B5: 2 | C5: 24 | E5: lambda_M2 | F5: 5.12295082e-05 | G5: q_M2 | H5: 0.001229508197
A6: Varmeveksler, VV | B6: 4 | C6: 48 | E6: lambda_VV | F6: 2.56147541e-05 | G6: q_VV | H6: 0.001229508197
A7: Strømforsyning, S | B7: 5 | C7: 4 | E7: lambda_S | F7: 2.049180328e-05 | G7: q_S | H7: 8.196721311e-05
A8: Pumpe P3 | B8: 5 | D8: 730 | E8: lambda_P3 | F8: 2.049180328e-05 | G8: q_P3 | H8: =D8*F8/2 -> 0.007479508197
A9: Dieselmotor, DM | B9: 4 | D9: 730 | E9: lambda_DM | F9: 2.56147541e-05 | G9: q_DM | H9: =D9*F9/2 -> 0.009349385246
A10: Temperaturmåler, TT | B10: 6 | D10: 730 | E10: lambda_TT | F10: 1.707650273e-05 | G10: q_TT | H10: 0.006232923497
F12: Q sjøvann | H12: =SUM(H8:H10) -> 0.02306181694

Sheet FTA primær kjølesystem
B3: Q0 - bidrag | C3: Formel | D3: F0 - bidrag | E3: Formel
A4: Cut set(s) with 1 component
A5: {S} | B5: =q_S -> 8.196721311e-05 | C5: =ShowFormula(B5) -> =q_S | D5: =lambda_S -> 2.049180328e-05 | E5: =ShowFormula(D5) -> =lambda_S
A6: {VV} | B6: =q_VV -> 0.001229508197 | C6: =ShowFormula(B6) -> =q_VV | D6: =lambda_VV -> 2.56147541e-05 | E6: =ShowFormula(D6) -> =lambda_VV
A8: Cut set(s) with 2 components
A9: {P1,P2} | B9: =q_P1*q_P2 -> 6.718624026e-07 | C9: =q_P1*q_P2 | D9: =lambda_P1*q_P2+q_P1*lambda_P2 -> 1.679656006e-07 | E9: =lambda_P1*q_P2+q_P1*lambda_P2
A10: {P1,M2} | B10: =q_P1*q_M2 -> 1.007793604e-06 | C10: =q_P1*q_M2 | D10: =lambda_P1*q_M2+q_P1*lambda_M2 -> 1.679656006e-07 | E10: =lambda_P1*q_M2+q_P1*lambda_M2
A11: {M1,P2} | B11: =q_M1*q_P2 -> 1.007793604e-06 | C11: =q_M1*q_P2 | D11: =lambda_M1*q_P2+q_M1*lambda_P2 -> 1.679656006e-07 | E11: =lambda_M1*q_P2+q_M1*lambda_P2
A12: {M1,M2} | B12: =q_M1*q_M2 -> 1.511690406e-06 | C12: =q_M1*q_M2 | D12: =lambda_M1*q_M2+q_M1*lambda_M2 -> 1.259742005e-07 | E12: =lambda_M1*q_M2+q_M1*lambda_M2
A13: Q0= | B13: =SUM(B5:B12) -> 0.00131567455 | C13: F0= | D13: =SUM(D5:D12) -> 4.673642838e-05
A14: Q0× 8760 = timer per år = | B14: =B13*8760 -> 11.52530906 | D14: =D13*8760 -> 0.4094111126 | E14: (Frekvens per år)

Sheet ETA
A1: ¯ = Nei, ® = Ja
I2: Formel, Frekvens
A3: Ingen kjøling VV, f= | C3: SS feiler, q= | G3: Ingen kjøling, F=
A4: =F_0 -> 4.673642838e-05 | C4: =Q0_Secondary -> 0.02306181694 | G4: =fInit*q_SS -> 1.077826956e-06 | I4: =ShowFormula(G4) -> =fInit*q_SS
A5: =ShowFormula(fInit) -> =F_0 | C5: =ShowFormula(q_TT2) -> =Q0_Secondary | G5: =G4*8760 -> 0.009441764132 | H5: år-1
G6: =1/G5 -> 105.9124106 | H6: år mellom forekomst
G7: Sjøvannskjøling, F=
G8: =fInit*(1-q_SS) -> 4.565860142e-05 | I8: =ShowFormula(G8) -> =fInit*(1-q_SS)
G9: =G8*8760 -> 0.3999693485 | H9: år-1
G10: =1/G9 -> 2.500191587 | H10: år mellom forekomst

Sheet FTA sekundær kjølesystem
A5: Cut set(s) with 1 component | B5: Q0 - bidrag | C5: Formel
A6: {P3} | B6: =q_P3 -> 0.007479508197 | C6: =ShowFormula(B6) -> =q_P3
A7: {DM} | B7: =q_DM -> 0.009349385246 | C7: =q_DM
A8: {LE} | B8: 0 | C8: 0
A9: {TT} | B9: =q_TT -> 0.006232923497 | C9: =q_TT
A10: Q0= | B10: =SUM(B2:B9) -> 0.02306181694 | C10: =SUM(B2:B9)
A11: Q0× 8760 = timer per år = | B11: =B10*8760 -> 202.0215164 | C11: =B10*8760
